Workbook

Sheet 1-3 TRIM 2019
A1: AGIRIA - Expediente | B1: NOIZ - Fecha Dto. | C1: NORI - Adjudicatario | D1: IZF/NAN - CIF/DNI | E1: ZENBATEKOA BEZa barik - Importe sin IVA | F1: ZENBATEKOA BEZ barne - Importe con IVA | G1: ZER - Concepto | H1: IRAUPENA - Duración | I1: AMAIERA DATA - Fecha finalización | J1: OHARRAK - Observaciones
A2: 930 | B2: 2019-07-22 | C2: A tiempo servicios y prevención | D2: B95480877 | E2: 1960 | F2: =E2*1.21 -> 2371.6 | G2: DETECTORES DE HUMO Usuarios/as de SAD
A3: ADO2 | B3: 01/03 a 30/06 | C3: A. INDE EDUCA,S.L. | D3: B95167060 | E3: 118.5 | F3: 143.39 | G3: SUMINISTRO DE SOPORTE PELOTAS GIGANTES...PARA SAKONETA.-FRA. 2019/232 PP Nº 17/19
A4: ADO1 | B4: 01/01 a 30/03 | C4: A. INDE EDUCA,S.L. | D4: B95167060 | E4: 296 | F4: 358.16 | G4: IMPORTE TBJOS DE REPARACION DE MARCADOR SASKIBALOIA EN POLI KANDELAZ.-FRA. 2019/60 PP Nº 5/19
A5: ADO2 | B5: 01/03 a 30/06 | C5: A. INDE EDUCA,S.L. | D5: B95167060 | E5: 306.5 | F5: 370.87 | G5: SUMINISTRO DE CINTURON AQUAROBIC....PARA SAKONETA.-FRA. 2019/246 PP Nº 17/19
A6: ADO3 | B6: 01/07 a 30-09 | C6: ABAD BECERRIL JUAN CARLOS | D6: 22734600C | E6: =F6/1.21 -> 14.38016529 | F6: 17.4 | G6: IMPORTE ENMARCACION DIPLOMA AYUTO F.F-14 PP Nº 25/19
A7: ADO1 | B7: 01/01 a 30/03 | C7: ABRA IMPORTACIONES,S.L. | D7: B95302949 | E7: 146.08 | F7: 176.76 | G7: IMPORTE BOTELLAS PERSONALIZADAS ALCALDIA F.190119 PP Nº 11/19
A8: ADO2 | B8: 01/03 a 30/06 | C8: ABRA IMPORTACIONES,S.L. | D8: B95302949 | E8: 373.5 | F8: 451.94 | G8: 150 BOTELLAS DE CRISTAL CON FUNDA NEOPRENO PERSONALIZADAS Y CON LOGOTIPO A 1 TINTA-FC.190245 PP Nº 23/19
A9: ADO2 | B9: 01/03 a 30/06 | C9: ABRA SEGURIDAD, S.L. | D9: B95444733 | E9: 45 | F9: 54.45 | G9: IMPORTE ASISTENCIA TECNICA .-FRA. 908100139 PP Nº 8/19
A10: ADO3 | B10: 01/07 a 30-09 | C10: ABRA SEGURIDAD, S.L. | D10: B95444733 | E10: =F10/1.21 -> 279.1735537 | F10: 337.8 | G10: IMPORTE CONEXION ALARMAS SER SOCIALES SAB ARA 67 CUOTA 2019 F.908100652 PP Nº 26/19
A11: ADO3 | B11: 01/07 a 30-09 | C11: ABRA SEGURIDAD, S.L. | D11: B95444733 | E11: =F11/1.21 -> 216.2892562 | F11: 261.71 | G11: IMPORTE CONEXION ALARMAS SER SOCIALES 2019 F.908100655 PP Nº 26/19
A12: ADO3 | B12: 01/07 a 30-09 | C12: ABRA SEGURIDAD, S.L. | D12: B95444733 | E12: =F12/1.21 -> 224.2727273 | F12: 271.37 | G12: IMPORTE CUOTA ANUAL MANTENIMIENTO ALARMAS OF TECNICA F.908400832 PP Nº 33/19
A13: ADO3 | B13: 01/07 a 30-09 | C13: ABRA SEGURIDAD, S.L. | D13: B95444733 | E13: =F13/1.21 -> 97.29752066 | F13: 117.73 | G13: IMPORTE ASISTENCIA TECNICA EN TXOMIN ARESTI.-FR.A 908100953 PROP PAGOS 38/19
A14: 76 | B14: 2019-01-15 | C14: ACIDEKA SL | D14: A48093926 | E14: 10611 | F14: =E14*1.21 -> 12839.31 | G14: Suministro a tramitar a través de compras | H14: 12 Meses | I14: 2019-12-31 | J14: Es el acumulado a este trimestre
A15: ADO3 | B15: 01/07 a 30-09 | C15: ACIDEKA, S.A. | D15: A48093926 | E15: =F15/1.21 -> 629.0082645 | F15: 761.1 | G15: IMPORTE CLOROS PISCINAS TORRESOLO-JULIO F.762826- PROP.PAGO Nº35/19
A16: 141 | B16: 2019-01-18 | C16: ADOS INFORMATICA, SL | D16: B95792784 | E16: 5457.39 | F16: =E16*1.21 -> 6603.4419 | G16: Mantenimiento de las Aplicaciones Informáticas para: 1. Gestión de Compras y Almacenes A2 COMP; 2. Registro y Conformación de Facturas A2REGFAC; 3.Gestión de Inventario y Patrimonio A2INVEN | H16: 12 Meses | I16: 2019-12-31
A17: 5 | B17: 2019-01-07 | C17: Ados Teatroa S.L. | D17: B20567400 | E17: 990 | F17: =E17*1.21 -> 1197.9 | G17: Actuación de Teatro "El baile de los años" | H17: PUNTUAL
A18: 484 | B18: 2019-05-07 | C18: Adsis Fundazioa | D18: G81436099 | E18: 316 | F18: =E18*1.21 -> 382.36 | G18: Raseo parred cobertizo patio Primaria Ikastola Altzaga | H18: PUNTUAL
A19: 1030 | B19: 2019-09-20 | C19: Adur | D19: B95677746 | E19: 700 | F19: 770 | G19: Herrikirolak SEM
A20: 1060 | B20: 2019-09-13 | C20: Adur Ekintza Kulturalak S.L. | D20: B95677746 | E20: 1652.89 | F20: =E20*1.21 -> 1999.9969 | G20: Prueba aizkolaris Fiestas la Txopera | H20: PUNTUAL
A21: ADO2 | B21: 01/03 a 30/06 | C21: AED- ARRASATE EUSKALDUN DEZAGUN | D21: G20178133 | E21: 743.8 | F21: 900 | G21: IMPORTE SERV DE ACTUACION BUAH TXABAL .-FRA. 19003 PP Nº 13/19
A22: ADO2 | B22: 01/03 a 30/06 | C22: AEROCAD ROTULACIONES SL | D22: B95528519 | E22: 323 | F22: 390.83 | G22: IMPORTE DESROTULACION Y ROTULACION DE PUERTAS DEL VEHICULO 3598JKJ DE POLICIA.-FRA. B19/0142 PP Nº22/19
A23: 929 | B23: 2019-07-19 | C23: Agertzen | D23: B95921698 | E23: 21865 | F23: =E23*1.21 -> 26456.65 | G23: Pintado Skatepark
A24: ADO2 | B24: 01/03 a 30/06 | C24: AGROJARDIN ASTIKENE S.L. | D24: B95583340 | E24: 207.45 | F24: 251.01 | G24: SUMINISTRO DE SACO RECOGEDOR, CORREA, SPRAY...PARA JARDINERIA.-FRA. 19/00206 PP Nº 5/19
A25: ADO2 | B25: 01/03 a 30/06 | C25: AGROJARDIN ASTIKENE S.L. | D25: B95583340 | E25: 391.54 | F25: 473.76 | G25: SUMINISTRO DE SPRAY ANTIRESINA, CABLE EMBRAGUE, FILTRO ACEITE...JARDINERIA.-FRA. 19/00859 PP Nº 13/19
A26: ADO2 | B26: 01/03 a 30/06 | C26: AGROJARDIN ASTIKENE S.L. | D26: B95583340 | E26: 478.48 | F26: 578.96 | G26: SUMINISTRO DE MATERIAL PARA JARDINERIA.-FRA. 19/01662 PP Nº 22/19
A27: 1017 | B27: 2019-09-06 | C27: AGROJARDIN ASTIKENE SL | D27: B95583340 | E27: 695.2 | F27: =E27*1.21 -> 841.192 | G27: Reparación de maquinaria de jardineria mes Agosto 2019
A28: 316 | B28: 2019-03-08 | C28: AGROJARDIN ASTIKENE SL | D28: B95583340 | E28: 1383.02 | F28: =E28*1.21 -> 1673.4542 | G28: Reparaciones del mes de Febrero 2019_jardineria
A29: 205 | B29: 2019-02-08 | C29: AGROJARDIN ASTIKENE SL | D29: B95583340 | E29: 1393.38 | F29: =E29*1.21 -> 1685.9898 | G29: Reparación mes Enero
A30: 856 | B30: 2019-07-05 | C30: AGROJARDIN ASTIKENE SL | D30: B95583340 | E30: 1550.13 | F30: =E30*1.21 -> 1875.6573 | G30: Reparación maquina de jardinería mes junio 2019
A31: 485 | B31: 2019-05-07 | C31: AGROJARDIN ASTIKENE SL | D31: B95583340 | E31: 1781.48 | F31: =E31*1.21 -> 2155.5908 | G31: Reparación de la maquinaria de jardinería mes de Abril de 2019
A32: 986 | B32: 2019-08-13 | C32: AGROJARDIN ASTIKENE SL | D32: B95583340 | E32: 1948.75 | F32: =E32*1.21 -> 2357.9875 | G32: Reparación maquina de jardinería mes julio 2019
A33: 341 | B33: 2019-04-10 | C33: AGROJARDIN ASTIKENE SL | D33: B95583340 | E33: 2011.61 | F33: =E33*1.21 -> 2434.0481 | G33: Reparación de maquinaria de jardineria mes Marzo 2019
A34: 644 | B34: 2019-06-04 | C34: AGROJARDIN ASTIKENE SL | D34: B95583340 | E34: 2338.9 | F34: =E34*1.21 -> 2830.069 | G34: Reparación de la maquinaria de jardinería mes de Mayo de 2019
A35: 77 | B35: 2019-01-15 | C35: AGROJARDIN ASTIKENE SL | D35: B95583340 | E35: 11362.7 | F35: =E35*1.21 -> 13748.867 | G35: Suministro a tramitar a través de compras | H35: 12 Meses | I35: 2019-12-31 | J35: Es el acumulado a este trimestre
A36: ADO3 | B36: 01/07 a 30-09 | C36: AGUIRRE MARKAIDA ITZIAR | D36: 14921715M | E36: =F36/1.21 -> 147.322314 | F36: 178.26 | G36: IMPORTE ABONO DEL 0,3% DE LA MASA SALARIAL DE TODO EL PERSONAL A CARGO DEL AYTO.-DTO.2603/19
A37: 1038 | B37: 2019-09-20 | C37: Aholku taldea KEIMA | D37: B95311643 | E37: 1350 | F37: 1485 | G37: Juegos SEM
A38: 372 | B38: 2019-04-05 | C38: Aire Aire Distribución de espectáculos S.L. | D38: B95230918 | E38: 1600 | F38: =E38*1.21 -> 1936 | G38: Actuación "El Baker´s Saloon" Umore Azoka 2019 | H38: PUNTUAL
A39: 397 | B39: 2019-04-05 | C39: Aire Aire Distribución de espectáculos S.L. | D39: B95230918 | E39: 3500 | F39: =E39*1.21 -> 4235 | G39: Actuación "Koselig" Umore Azoka 2019 | H39: PUNTUAL
A40: 398 | B40: 2019-04-05 | C40: Aire Aire Distribución de espectáculos S.L. | D40: B95230918 | E40: 3500 | F40: =E40*1.21 -> 4235 | G40: Actuación "JO-JO" Umore Azoka 2019 | H40: PUNTUAL
A41: 748 | B41: 2019-06-18 | C41: Aire Aire Distribución de espectáculos S.L. | D41: B95230918 | E41: 3700 | F41: =E41*1.21 -> 4477 | G41: LAS XL San Juan Jaiak | H41: PUNTUAL
A42: 313 | B42: 2019-03-06 | C42: Aitor Lachaga García | D42: 14608735D | E42: 3240 | F42: =E42*1.21 -> 3920.4 | G42: Camisetas II Emakumeen Martxa
A43: 782 | B43: 2019-06-14 | C43: Aitor Lachaga García | D43: 14608735D | E43: 3675 | F43: =E43*1.21 -> 4446.75 | G43: Camisetas serigrafiadas para campaña UDA 2019 | H43: PUNTUAL
A44: 311 | B44: 2019-03-06 | C44: Aitziber Aguinagalde Bilbao | D44: 16070631W | E44: 140 | F44: 140 | G44: Charla "Economía feminist"
A45: 238 | B45: 2019-02-15 | C45: Aixerrota Producciones S.L. | D45: B48669444 | E45: 2400 | F45: =E45*1.21 -> 2904 | G45: Gestión adquisición de premios, etc…
A46: ADO2 | B46: 01/03 a 30/06 | C46: AJA SANCHEZ M.R. | D46: 16044762P | E46: 27.3 | F46: 33.03 | G46: IMPORTE MATERIAL TALLERES KULTUR F.3680 PP Nº 21/19
A47: 53 | B47: 2019-01-09 | C47: Aken, S.Coop. Peq | D47: F95820593 | E47: 1700 | F47: 1700 | G47: Impartición acción formativa "Introducción a la empresa y gestión empresarial"
A48: 582 | B48: 2019-05-21 | C48: Aken, S.Coop. Peq | D48: F95820593 | E48: 1700 | F48: 1700 | G48: Impartición acción formativa “ Introducción a la empresa y gestión empresarial”
A49: 812 | B49: 2019-06-20 | C49: Aken, S.Coop. Peq | D49: F95820593 | E49: 1700 | F49: 1700 | G49: Acción formativa "Introducción a la empresa y gestión empresarial
A50: 622 | B50: 2019-05-29 | C50: AKROPOST | D50: A95265195 | E50: -15.4958 | F50: =E50*1.21 -> -18.749918 | G50: Actualizar fact Akropost Concurso Pop Rock Gaztegune
A51: 317 | B51: 2019-03-08 | C51: AKROPOST | D51: A95265195 | E51: 14.95 | F51: 18.92 | G51: Servicios postales | H51: PUNTUAL
A52: 167 | B52: 2019-01-29 | C52: AKROPOST | D52: A95265195 | E52: 15.057 | F52: =E52*1.21 -> 18.21897 | G52: Ampliar Fact. Akropost programa Gabonak Gaztegune
A53: 629 | B53: 2019-06-03 | C53: AKROPOST | D53: A95265195 | E53: 16 | F53: =E53*1.21 -> 19.36 | G53: Envíos cartelería
A54: 1049 | B54: 2019-09-13 | C54: AKROPOST | D54: A95265195 | E54: 17.99 | F54: =E54*1.21 -> 21.7679 | G54: Envíos dípticos | H54: PUNTUAL
A55: 1024 | B55: 2019-09-10 | C55: AKROPOST | D55: A95265195 | E55: 42.5 | F55: =E55*1.21 -> 51.425 | G55: Colocar carteles Campaña Antirumores | H55: PUNTUAL
A56: 469 | B56: 2019-04-25 | C56: Akropost | D56: A95265195 | E56: 44.7 | F56: =E56*1.21 -> 54.087 | G56: Envíos cartelería y dípticos
A57: 155 | B57: 2019-01-24 | C57: AKROPOST | D57: B95135075 | E57: 338.22 | F57: =E57*1.21 -> 409.2462 | G57: Campaña de Prematriculación: ENVÍO de materiales | H57: PUNTUAL
A58: 342 | B58: 2019-03-15 | C58: AKROPOST | D58: A95265195 | E58: 636.3 | F58: =E58*1.21 -> 769.923 | G58: Colocacion de bandos en portales del IVTM 2019 | H58: PUNTUAL
A59: 427 | B59: 2019-04-04 | C59: AKROPOST | D59: A95265195 | E59: 2241.39 | F59: =E59*1.21 -> 2712.0819 | G59: Ampliación importe CM 174/2019-Decreto 382/2019
A60: 174 | B60: 2018-01-29 | C60: AKROPOST | D60: A95265195 | E60: 12000 | F60: =E60*1.21 -> 14520 | G60: Recogida-reparto correspondencia entre ayto y otras áreas | H60: 12 Meses | I60: 2019-12-31
A61: 234 | B61: 2019-02-15 | C61: Akropost - Servicios postales | D61: A95265195 | E61: 92.3 | F61: =E61*1.21 -> 111.683 | G61: Envíos dípticos y carteles
A62: ADO2 | B62: 01/03 a 30/06 | C62: AKROPOST SERVICIOS POSTALES | D62: A95265195 | E62: 40.61 | F62: 49.14 | G62: IMPORTE DISTRIBUCION PUBLIENVIOS BEHARGINTZA F.190144 PP Nº 12/19
A63: ADO2 | B63: 01/03 a 30/06 | C63: AKROPOST SERVICIOS POSTALES | D63: A95265195 | E63: 63.2 | F63: 76.47 | G63: IMPORTE ENTREGA DE 16 ENVIO DE FOLLETOS INFORMATIVOS NUEVA OFERTA FORMATIVA BEHARGINTZA.-FRA. 190049- PROP.PAGOS Nº7/19
A64: ADO3 | B64: 01/07 a 30-09 | C64: AKROPOST SERVICIOS POSTALES | D64: A95265195 | E64: =F64/1.21 -> 57.42975207 | F64: 69.49 | G64: IMPORTE COLOCACION PEGATINAS EN AGENDAS REPARTO CORREOS KULTUR F.190631 PP Nº 34/19
A65: 588 | B65: 2019-05-22 | C65: Akropost-Servicios postales | D65: A95265195 | E65: 325 | F65: =E65*1.21 -> 393.25 | G65: Envío difusión a domicilio a los/as jóvenes que cumplen las condiciones para participar en el programa
A66: 828 | B66: 2016-06-25 | C66: ALABAZAN S.COOP | D66: F95653010 | E66: 300 | F66: =E66*1.21 -> 363 | G66: Programa El Árbol de la Palabra
A67: 590 | B67: 2019-05-23 | C67: ALABAZAS S.COOP | D67: F95653010 | E67: 1890 | F67: 2079 | G67: Ipuin Kontalaria | H67: PUNTUAL
A68: 169 | B68: 2019-01-29 | C68: Alaiki Zerbitzu Gizakulturalak S.L. | D68: B48910525 | E68: -34.472 | F68: -37.92 | G68: Minorar Fact. Alaiki Zerbitzu Gizakulturalak S.L. programa Gabonak Gaztegune
A69: 1067 | B69: 2019-09-18 | C69: Alaiki Zerbitzu Gizakulturalak S.L. | D69: B48910525 | E69: 520 | F69: =E69*1.21 -> 629.2 | G69: Ampliar consignación de gasto Alaiki Ondizko jaiak
A70: 323 | B70: 2019-03-13 | C70: Alaiki Zerbitzu Gizakulturalak S.L. | D70: B48910525 | E70: 635 | F70: =E70*1.21 -> 768.35 | G70: Aurresku y Txistularis
A71: 743 | B71: 2019-06-18 | C71: Alaiki Zerbitzu Gizakulturalak S.L. | D71: B48910525 | E71: 1620 | F71: =E71*1.21 -> 1960.2 | G71: Txistu saioak San Juan Jaiak
A72: 941 | B72: 2019-07-24 | C72: Alaiki Zerbitzu Gizakulturalak S.L. | D72: B48910525 | E72: 2595 | F72: =E72*1.21 -> 3139.95 | G72: Txistularis-Aurresku Ondiz - Actuación Fiestas de Ondiz
A73: 744 | B73: 2019-06-18 | C73: Alaiki Zerbitzu Gizakulturalak S.L. | D73: B48910525 | E73: 3510 | F73: =E73*1.21 -> 4247.1 | G73: Los Txikis + Arantza eta Pantxo + amigos del Swing San Juan Jaiak
A74: ADO2 | B74: 01/03 a 30/06 | C74: ALAIKI ZERBITZU GIZAKULTURALAK, S.L. | D74: B48910525 | E74: 360 | F74: 435.6 | G74: IMPORTE Grabación contestador automático POLICIA F.A-212.19 PP Nº 23/19
A75: 750 | B75: 2019-06-18 | C75: Albe Getxo | D75: G48725881 | E75: 2070 | F75: 2070 | G75: Bertso Saioa San Juan Jaiak | H75: PUNTUAL
A76: ADO2 | B76: 01/03 a 30/06 | C76: ALBERDI MAKILA SLU | D76: B75098533 | E76: 861.14 | F76: 1041.98 | G76: IMPORTE MAKILA HONOR ALCALDIA F.11.647 PP Nº 22/19
A77: 867 | B77: 2019-07-12 | C77: Alboka S. Coop. | D77: F95162459 | E77: -1200 | F77: =E77*1.21 -> -1452 | G77: Minorar fact. Alboka S. Coop. San Juan jaiak
A78: 943 | B78: 2019-07-24 | C78: Alexander García - Diverparke | D78: 45668654S | E78: 1420 | F78: 1562 | G78: Hinchables Fiestas de Ondiz | H78: PUNTUAL
A79: 715 | B79: 2019-06-13 | C79: ALFILSTORE S.L. | D79: B95818993 | E79: 312 | F79: 377.52 | G79: MOTXILAK OPORRAK BAKEAN | H79: PUNTUAL | I79: 2019-07-04
A80: 353 | B80: 2019-04-01 | C80: Alges Leioa SL | D80: B95517132 | E80: 986.5 | F80: =E80*1.21 -> 1193.665 | G80: Suministro e intsalacion Motores Toldos exteriores. Hogar de Lamiako
A81: 1042 | B81: 2019-09-12 | C81: Alges Leioa SL | D81: B95517132 | E81: 1207.5 | F81: =E81*1.21 -> 1461.075 | G81: Suministro y colocacion de pisa peldaños en pasarela
A82: 299 | B82: 2019-03-06 | C82: Alges Leioa SL | D82: B95517132 | E82: 1261 | F82: =E82*1.21 -> 1525.81 | G82: Ampliar factura Alges Leioa SL reconstruccion muro Begoñako Ama
A83: 74 | B83: 2019-01-14 | C83: Alges Leioa SL | D83: B95517132 | E83: 1306.25 | F83: =E83*1.21 -> 1580.5625 | G83: Arreglo de canastas Txomin Aresti | H83: PUNTUAL
A84: 617 | B84: 2019-06-07 | C84: Alges Leioa SL | D84: B95517132 | E84: 1384 | F84: =E84*1.21 -> 1674.64 | G84: Suministro y sustitucion de nuevo motor en persiana de behargintza
A85: 273 | B85: 2019-02-27 | C85: Alges Leioa SL | D85: B95517132 | E85: 1622.5 | F85: =E85*1.21 -> 1963.225 | G85: Suministro piezas reparaciones bancos | J85: Procede: CM-502/2019 Dec. 1487
A86: 146 | B86: 2019-01-23 | C86: Alges Leioa SL | D86: B95517132 | E86: 1628.3 | F86: =E86*1.21 -> 1970.243 | G86: Reparación barandilla Monte Ikea
A87: 38 | B87: 2019-01-08 | C87: Alges Leioa SL | D87: B95517132 | E87: 1986.3 | F87: =E87*1.21 -> 2403.423 | G87: Reparacion persiana Hogar Errekalde | H87: PUNTUAL
A88: 366 | B88: 2019-04-11 | C88: Alges Leioa SL | D88: B95517132 | E88: 2770.9 | F88: =E88*1.21 -> 3352.789 | G88: Suministro e instalacion de mecanismos manuales en persianas Ikastola Altzaga
A89: 73 | B89: 2019-01-14 | C89: Alges Leioa SL | D89: B95517132 | E89: 4216.4 | F89: =E89*1.21 -> 5101.844 | G89: Arreglos en Instalaciones deportivas de sarriena | H89: PUNTUAL
A90: 611 | B90: 2019-05-31 | C90: Alges Leioa SL | D90: B95517132 | E90: 4849 | F90: =E90*1.21 -> 5867.29 | G90: colegio Lamiako Pintura frontón.
A91: 276 | B91: 2019-02-28 | C91: Alges Leioa SL | D91: B95517132 | E91: 4917.5 | F91: =E91*1.21 -> 5950.175 | G91: Reparacion puente de madera Pinosolo
A92: 616 | B92: 2019-06-13 | C92: Alges Leioa SL | D92: B95517132 | E92: 6833.1 | F92: =E92*1.21 -> 8268.051 | G92: colegio Lamiako suministro y colocacion de policarbonato entrada.
A93: 331 | B93: 2019-04-01 | C93: Alges Leioa SL | D93: B95517132 | E93: 28672.89 | F93: =E93*1.21 -> 34694.1969 | G93: Reconstrucción barandillas Iturribide
A94: ADO2 | B94: 01/03 a 30/06 | C94: ALGES LEIOA, S.L. | D94: B95517132 | E94: 85.5 | F94: 103.46 | G94: IMPORTE SUMINISTRO Y COLOCACION DE MANILLA EN CP LAMIAKO.-. FRA 19071 PP Nº 14/19
A95: ADO2 | B95: 01/03 a 30/06 | C95: ALGES LEIOA, S.L. | D95: B95517132 | E95: 148.6 | F95: 179.81 | G95: IMPORTE SOLDAR PUERTA ENTRADA A CASERIO DEL PARQUE PINOSOLO.-FRA. 19106 PP Nº 22/19
A96: ADO2 | B96: 01/03 a 30/06 | C96: ALGES LEIOA, S.L. | D96: B95517132 | E96: 150.5 | F96: 182.11 | G96: IMPORTE SOLDAR ARQUETAS EN EL BARRIO ITURRIBIDE.-FRA. 19108 PP Nº 22/19
A97: ADO1 | B97: 01/01 a 30/03 | C97: ALGES LEIOA, S.L. | D97: B95517132 | E97: 156 | F97: 188.76 | G97: IMPORTE COLOCACION DE MANILLA Y CERROJO EN LOCAL EISE.-FRA. 19046 PP Nº 11/19
A98: ADO2 | B98: 01/03 a 30/06 | C98: ALGES LEIOA, S.L. | D98: B95517132 | E98: 195.2 | F98: 236.19 | G98: IMPORTE SERV DESMONTAJE PUERTA CAMBIAR BISAGRA EN POLIDEPORT.- FRA. 19049 PP Nº 16/19
A99: ADO2 | B99: 01/03 a 30/06 | C99: ALGES LEIOA, S.L. | D99: B95517132 | E99: 211.5 | F99: 255.92 | G99: IMPORTE COLOCACION Y SUMINISTRO DE SENSORES DE VIENTO PARA EL TOLDO DEL HOGAR JUB LAMIAKO.-FRA. 19089 PP Nº 18/19
A100: ADO1 | B100: 01/01 a 30/03 | C100: ALGES LEIOA, S.L. | D100: B95517132 | E100: 220 | F100: 266.2 | G100: IMPORTE REPARACION DE VERJA DE LA IKASTOLA ALTZAGA.-FRA. 19008 PP Nº 8/19
A101: ADO2 | B101: 01/03 a 30/06 | C101: ALGES LEIOA, S.L. | D101: B95517132 | E101: 363.2 | F101: 439.47 | G101: IMPORTE REPARACION DE PUERTA BASCULANTE DE JARDINEROS.-FRA. 19120 PP Nº 24/19
A102: ADO2 | B102: 01/03 a 30/06 | C102: ALGES LEIOA, S.L. | D102: B95517132 | E102: 390 | F102: 471.9 | G102: IMPORTE SELLAR ENTRADA AGUA EN TRASLUCIDOS EN PINOSOLO.-FRA. 19107 PP Nº 22/19
A103: ADO1 | B103: 01/01 a 30/03 | C103: ALGES LEIOA, S.L. | D103: B95517132 | E103: 517.14 | F103: 625.74 | G103: SUMINISTRO Y COLOCACION DE PASAMANOS DE ESCALERA EN TXOMIN ARESTI.-FRA. 19022 PP Nº 10/19
A104: ADO2 | B104: 01/03 a 30/06 | C104: ALGES LEIOA, S.L. | D104: B95517132 | E104: 545.3 | F104: 659.81 | G104: IMPORTE DE REPARACION DE BARANDILLA CURVA EN MONTE IKEA.-FRA. 19122 PP Nº 23/19
A105: ADO2 | B105: 01/03 a 30/06 | C105: ALGES LEIOA, S.L. | D105: B95517132 | E105: 565.2 | F105: 683.89 | G105: IMPORTE REPARASO BARANDILLA DE PIES EN MENDIBILOSTEKOA.-FR.A 19121 PP Nº 24/19
A106: ADO1 | B106: 01/01 a 30/03 | C106: ALGES LEIOA, S.L. | D106: B95517132 | E106: 585.2 | F106: 708.09 | G106: IMPROTE REPARACION DE LA BARANDILLA DEL PARQUE DE LA IGLESIA.-FR.A 19007 PP Nº 5/19
A107: ADO2 | B107: 01/03 a 30/06 | C107: ALGES LEIOA, S.L. | D107: B95517132 | E107: 653.9 | F107: 791.22 | G107: IMPORTE REPARACION DE BIONDA EN PERURI AUZOA.-FRA. 19119 PP Nº 23/19
A108: ADO1 | B108: 01/01 a 30/03 | C108: ALGES LEIOA, S.L. | D108: B95517132 | E108: 664.4 | F108: 803.93 | G108: SUMINISTRO Y COLOCACION DE VIDRIO LAMINAR EN POLID SAKONETA.-FRA. 19021 PP Nº 9/19
A109: ADO2 | B109: 01/03 a 30/06 | C109: ALGES LEIOA, S.L. | D109: B95517132 | E109: 734.4 | F109: 888.62 | G109: IMPORTE SUMINISTRO Y COLOCACION DE UN EJE MOTIR PERSIANA SERV SOCIALES.- FRA. 19073 PP Nº 14/19
A110: ADO2 | B110: 01/03 a 30/06 | C110: ALGES LEIOA, S.L. | D110: B95517132 | E110: 824.94 | F110: 998.18 | G110: IMPORTE REPARACION DE BARANDILLA EN GAZTELUBIDE.-FRA. 19118 PP Nº 24/19
A111: ADO2 | B111: 01/03 a 30/06 | C111: ALGES LEIOA, S.L. | D111: B95517132 | E111: 886.5 | F111: 1072.67 | G111: IMPORTE CIERRE DE MALLA GALVANIZADA EN CL LAMIAKO.-FRA. 19117 PP Nº 23/19
A112: ADO2 | B112: 01/03 a 30/06 | C112: ALGES LEIOA, S.L. | D112: B95517132 | E112: 953.2 | F112: 1153.37 | G112: IMPORTE REPARACION BALAUSTRADA PARKING CIVICO.-FRA. 19060 PP Nº 14/19
A113: ADO3 | B113: 01/07 a 30-09 | C113: ALGES LEIOA, S.L. | D113: B95517132 | E113: =F113/1.21 -> 363.1983471 | F113: 439.47 | G113: IMPORTE REPARACION DE PUERTA BASCULANTE DE JARDINEROS.-FRA. 19120 PP Nº 24/19
A114: ADO3 | B114: 01/07 a 30-09 | C114: ALGES LEIOA, S.L. | D114: B95517132 | E114: =F114/1.21 -> 565.1983471 | F114: 683.89 | G114: IMPORTE REPARASO BARANDILLA DE PIES EN MENDIBILOSTEKOA.-FR.A 19121 PP Nº 24/19
A115: ADO3 | B115: 01/07 a 30-09 | C115: ALGES LEIOA, S.L. | D115: B95517132 | E115: =F115/1.21 -> 824.9421488 | F115: 998.18 | G115: IMPORTE REPARACION DE BARANDILLA EN GAZTELUBIDE.-FRA. 19118 PP Nº 24/19
A116: 627 | B116: 2019-05-31 | C116: Alicia Guede Freire | D116: 30640482C | E116: 2.7933 | F116: =E116*1.21 -> 3.379893 | G116: Minorar fact Alicia Guede Freire programa Concurso Jovenes Pintores Gazteleku | H116: PUNTUAL
A117: 470 | B117: 2019-04-25 | C117: Alicia Guede Freire | D117: 30640482C | E117: 152.42 | F117: =E117*1.21 -> 184.4282 | G117: Cesta para los/as jurados (2 cestas) | H117: PUNTUAL
A118: 1051 | B118: 2019-09-13 | C118: Alicia Guede Freire (Euskotzarak) | D118: 30640482C | E118: 65.76 | F118: =E118*1.21 -> 79.5696 | G118: Detalle jurado | H118: PUNTUAL
A119: 122 | B119: 2019-01-16 | C119: Alicia Suarez S.L. | D119: B95038220 | E119: -63.7355 | F119: =E119*1.21 -> -77.119955 | G119: Minorar Fact. Alicia Suarez Gabonak 2018
A120: ADO1 | B120: 01/01 a 30/03 | C120: ALONSO DEL VAL VICTOR | D120: 14241971A | E120: 220 | F120: 266.2 | G120: IMPORTE TAPIZADO DE DOS ASIENTOS CON RESPALDO PARA SAKONETA.-FRA. 11 PP Nº 10/19
A121: ADO1 | B121: 01/01 a 30/03 | C121: ALVAREZ RUBIO SAMUEL | D121: 30630799C | E121: 400 | F121: 484 | G121: IMPORTE RECORRIDO TECNICO PARA VALOARCION DEL ESTADO ZONAS CON ARBOLADO.-FRA. 19-014 PP Nº 8/19
A122: 384 | B122: 2019-04-05 | C122: Álvaro Manso Asensio | D122: 72489557C | E122: 500 | F122: =E122*1.21 -> 605 | G122: Actuación "Reportero ON FIRE" Umore Azoka 2019 | H122: PUNTUAL
A123: 667 | B123: 2019-06-06 | C123: Amaia de Goñi Alonso (Kurkudi Herriko Taberna) | D123: 16094359V | E123: 178.512 | F123: =E123*1.21 -> 215.99952 | G123: Ampliar Fact. Amaia de Goñi (Kurkudi Herriko Taberna) Umore Azoka 2019
A124: ADO2 | B124: 01/03 a 30/06 | C124: AMAIA SIGLO XXI, S.L. | D124: B95248787 | E124: 53.26 | F124: 64.45 | G124: IMPORTE DESAYUNOS EMPLEO BEHARGINTZA F.1213 PP Nº 17/19
A125: ADO2 | B125: 01/03 a 30/06 | C125: AMAIA SIGLO XXI, S.L. | D125: B95248787 | E125: 57.19 | F125: 69.2 | G125: importe desayunos behargintza F.1217 PP Nº 23/19
A126: ADO1 | B126: 01/01 a 30/03 | C126: AMAIA SIGLO XXI, S.L. | D126: B95248787 | E126: 63.64 | F126: 77 | G126: IMPORTE DESAYUNOS BEHARGINTZA F.1.200 PP Nº 10/19
A127: 910 | B127: 2019-07-16 | C127: Ambuiberica | D127: B47484530 | E127: 75 | F127: 75 | G127: Actualización del CM 607/2019 - Ambulancia para campeonato fútbol femenino - la factura tiene un importe mayor al adjudicado en el Dec 1702/19
A128: 835 | B128: 2019-06-25 | C128: Ambuiberica | D128: B47484530 | E128: 225 | F128: 0 | G128: Asistencia snitaria Mundialito 2019
A129: 1072 | B129: 2019-09-19 | C129: Ambuiberica | D129: B47484530 | E129: 280 | F129: 0 | G129: Asistencia sanitaria Campeonato Bizkaia de Gimnasia Rítmica 29 de septiembre. | H129: PUNTUAL
A130: 1073 | B130: 2019-09-19 | C130: Ambuiberica | D130: B47484530 | E130: 400 | F130: 0 | G130: Asistencia sanitaria Campeonato Bizkaia de Gimnasia Rítmica 5 de octubre. | H130: PUNTUAL
A131: 607 | B131: 2019-05-27 | C131: Ambuiberica | D131: B47484530 | E131: 375 | F131: 0 | G131: Asistencia sanitaria torneo fútbol femenino 8 de junio | H131: PUNTUAL | J131: Procede: CM-477/2019 Dec. 1382
A132: 574 | B132: 2019-05-20 | C132: Ambuiberica | D132: B47484530 | E132: 412.5 | F132: 0 | G132: Asistencia sanitaria campeonato G. Rítmica 2 de junio | H132: PUNTUAL | I132: 2019-06-02
A133: 575 | B133: 2019-05-20 | C133: Ambuiberica | D133: B47484530 | E133: 450 | F133: 0 | G133: Asistencia sanitaria campeonato día del Baloncesto en Leioa 1 de junio | H133: PUNTUAL | I133: 2019-06-01
A134: 606 | B134: 2019-05-27 | C134: Ambuiberica | D134: B47484530 | E134: 900 | F134: 0 | G134: Asistencia sanitaria torneo Lagun Artea 1y 2 de junio | H134: PUNTUAL
A135: ADO3 | B135: 01/07 a 30-09 | C135: AMBUIBERICA S.L. | D135: B47484530 | E135: =F135/1.21 -> 198.3471074 | F135: 240 | G135: IMPORTE SERVICIO DE AMBULANCIA PARA EL PARTIDO FUTBOL DEL 14/09.-FRA. 7406/2019- PROP.PAGOS Nº 37/19
A136: 24 | B136: 2019-01-04 | C136: Ambulancias del Norte | D136: 22741172Z | E136: 118.25 | F136: 0 | G136: Partido Sd Leioa 5 enero 2019
A137: 25 | B137: 2019-01-04 | C137: Ambulancias del Norte | D137: 22741172Z | E137: 118.25 | F137: 0 | G137: Partido Sd Leioa 12 enero 2019
A138: 26 | B138: 2019-01-04 | C138: Ambulancias del Norte | D138: 22741172Z | E138: 118.25 | F138: 0 | G138: Partido Sd Leioa 26 enero 2019
A139: 222 | B139: 2019-02-11 | C139: Ambulancias DYA | D139: G48064760 | E139: 390 | F139: 0 | G139: Campeonato Esgrima 24 de febrero | I139: 2019-02-24 | J139: Procede: CM-736/18
A140: 901 | B140: 2019-07-24 | C140: Ambulancias MAIZ S.A.U. | D140: A20372116 | E140: 1742 | F140: 1742 | G140: Servicio de ambulancia Udondoko jaiak | H140: PUNTUAL
A141: 938 | B141: 2019-07-24 | C141: Ambulancias MAIZ S.A.U. | D141: A20372116 | E141: 2080 | F141: 2080 | G141: Ambulancias 6-7-8 y 15 de septiebre Fiestas de Ondiz | H141: PUNTUAL
A142: 1059 | B142: 2019-09-13 | C142: Ambulancias MAIZ S.A.U. | D142: A20372116 | E142: 2158 | F142: =E142*1.21 -> 2611.18 | G142: Servicio de ambulancias Fiestas la Txopera | H142: PUNTUAL | J142: Procede de CM 603/2019
A143: 1098 | B143: 2019-07-24 | C143: Ambulancias MAIZ SAU | D143: A20372116 | E143: 182 | F143: 182 | G143: Ampliar consignación de gasto fact. Maiz Ambulancias Ondizko jaiak | H143: PUNTUAL
A144: 824 | B144: 2019-07-16 | C144: Ambytecno | D144: A48239214 | E144: 1780 | F144: =E144*1.21 -> 2153.8 | G144: Reparaciones juegos
A145: 1039 | B145: 2019-09-12 | C145: Ambytecno | D145: A48239214 | E145: 1780 | F145: =E145*1.21 -> 2153.8 | G145: Revisión y reparación juegos Junio
A146: 1040 | B146: 2019-09-12 | C146: Ambytecno | D146: A48239214 | E146: 1780 | F146: =E146*1.21 -> 2153.8 | G146: Revisión y reparación juegos Julio
A147: 1041 | B147: 2019-09-12 | C147: Ambytecno | D147: A48239214 | E147: 1780 | F147: =E147*1.21 -> 2153.8 | G147: Revisión y reparación juegos Agosto
A148: 571 | B148: 2019-05-14 | C148: Ambytecno S.A. | D148: A48239214 | E148: 1728.8 | F148: =E148*1.21 -> 2091.848 | G148: Reparaciones parques infantiles
A149: 572 | B149: 2019-05-20 | C149: Ambytecno S.A. | D149: A48239214 | E149: 1780 | F149: =E149*1.21 -> 2153.8 | G149: Revisión y reparaciones parques infantiles
A150: 373 | B150: 2019-04-05 | C150: Ana Jose Capilla Cintado | D150: 31733770A | E150: 800 | F150: =E150*1.21 -> 968 | G150: Actuación "Cajita de Música" Umore Azoka 2019 | H150: PUNTUAL
A151: 621 | B151: 2019-06-13 | C151: Ana Lopez Franco (Aplicaciones Decorativas) | D151: 79142585E | E151: 12815.5 | F151: =E151*1.21 -> 15506.755 | G151: Tratamientos sobre madera Molino de Errekalde | H151: 2 Meses | J151: Procede: CM-878/2019 Dec. 2280
A152: 705 | B152: 2019-06-12 | C152: Ander Basaldua Castellano | D152: 16081852E | E152: -140 | F152: -154 | G152: Minorar Fact. Ander Basaldua Umore Azoka | H152: PUNTUAL
A153: 378 | B153: 2019-04-05 | C153: Ander Basaldua Castellano | D153: 16081852E | E153: 1400 | F153: =E153*1.21 -> 1694 | G153: Actuación "YIJAAA!!!" Umore Azoka 2019 | H153: PUNTUAL
A154: 570 | B154: 2019-06-19 | C154: Ander Duarte Vigiola | D154: 72402470B | E154: 4668.48 | F154: =E154*1.21 -> 5648.8608 | G154: Patios Inclusivos | H154: PUNTUAL
A155: 904 | B155: 2019-07-12 | C155: Ander Trabudua Sanchez | D155: 16081634B | E155: 8 | F155: 8 | G155: Ampliar consignación de gasto de Ander Trabudua San Juan jaiak | H155: PUNTUAL
A156: ADO2 | B156: 01/03 a 30/06 | C156: ANDOIN FERNANDEZ ALVARO | D156: 16050277A | E156: 12.6 | F156: 15.24 | G156: IMPORTE PARTE CORRESPONDIENTE AL IRPF NO RETENIDO EN LA FAC.F-34 DE FECHA 20/06/18- PROP.PAGOS Nº20/19
A157: 336 | B157: 2019-03-18 | C157: Andoni Izquierdo González | D157: 45671784V | E157: 500 | F157: 0 | G157: Taller de customizado
A158: 711 | B158: 2019-06-12 | C158: Andrea Waitzman García | D158: X3562162Z | E158: -140 | F158: -154 | G158: Minorar Fact. Andrea Waitzman Umore Azoka | H158: PUNTUAL
A159: 405 | B159: 2019-04-05 | C159: Andrea Waitzman García | D159: X3562162Z | E159: 1400 | F159: =E159*1.21 -> 1694 | G159: Actuación "Tutilimundi, Teatros en miniatura" Umore Azoka 2019 | H159: PUNTUAL
A160: ADO1 | B160: 01/01 a 30/03 | C160: ANGULO SANTOS ESTIBALIZ | D160: 44970821W | E160: 103.06 | F160: 124.7 | G160: SUMINISTRO DE MEDICAMENTOS PARA EMPLEADOS MUNICIPALES.-FRA. 003145 PROPUESTA PAGOS Nº 1/19
A161: ADO2 | B161: 01/03 a 30/06 | C161: ANGULO SANTOS ESTIBALIZ | D161: 44970821W | E161: 182.63 | F161: 220.98 | G161: SUMINISTRO DE MEDICAMENTOS RECETAS TRBJADORES.-FRA. 003158 PP Nº 16/19
A162: 402 | B162: 2019-04-05 | C162: Antón Coucheiro Failde | D162: 32822390X | E162: 900 | F162: =E162*1.21 -> 1089 | G162: Actuación "Sonámbulo" Umore Azoka 2019 | H162: PUNTUAL
A163: 706 | B163: 2019-06-12 | C163: Antonio Bastero Rey | D163: 16029471N | E163: -120 | F163: -132 | G163: Minorar Fact. Antonio Bastero Umore Azoka | H163: PUNTUAL
A164: 386 | B164: 2019-04-05 | C164: Antonio Bastero Rey | D164: 16029471N | E164: 1200 | F164: =E164*1.21 -> 1452 | G164: Actuación "Txontxongilo Bertsolariak" Umore Azoka 2019 | H164: PUNTUAL
A165: 741 | B165: 2019-06-18 | C165: Antonio Bastero Rey (Toni La Sal) | D165: 16029471N | E165: 799 | F165: =E165*1.21 -> 966.79 | G165: BIRUSAK ERASOAN ikuskizuna San Juan Jaiak | H165: PUNTUAL
A166: 896 | B166: 2019-07-05 | C166: Antonio Pastor Matos | D166: 12317228S | E166: 3600 | F166: 3960 | G166: Por la realización de 2 viajes de Askartza al Palacio Artaza del 7 al 21 de julio | H166: PUNTUAL
A167: 433 | B167: 2019-04-08 | C167: Antonio Pastor Matos | D167: 12317228S | E167: 8250 | F167: 9075 | G167: Recorrido de autobús por los barrios de Leioa, incluyendo monitor - Campaña UDA 20189
A168: 793 | B168: 2019-06-14 | C168: Aon Gil y Carvajal | D168: A28109247 | E168: 1284.02 | F168: 1365.97 | G168: Seguro de accidentes colectivo para campaña UDA 2019 | H168: 1 Mes | I168: 2019-07-31
A169: ADO1 | B169: 01/01 a 30/03 | C169: APPLUS NORCONTROL,S.L.U. | D169: B15044357 | E169: 149.8 | F169: 181.26 | G169: IMPORTE INSPECCION ASCENSOR REALIZADA EN MENDIBILE F.04 19000044 PP Nº 1/19
A170: ADO3 | B170: 01/07 a 30-09 | C170: APPLUS NORCONTROL,S.L.U. | D170: B15044357 | E170: =F170/1.21 -> 74.90082645 | F170: 90.63 | G170: IMPORTE ANOMALÍAS DE 1 ASCENSOR OFICINA TECNICA F.0419033089- PROP.PAGOS Nº35/19
A171: ADO1 | B171: 01/01 a 30/03 | C171: AQUAM - SERVIRREINER,S.L. | D171: B48785810 | E171: 103.9 | F171: 125.72 | G171: SUMINISTRO AGUA EMBOTELLADA PARA CULTURA. ENERO.-FRA. 727822 PROPUESTA PAGOS 6/19
A172: 137 | B172: 2019-01-18 | C172: ARCAL Gestion documental S.A. | D172: A47402706 | E172: 15000 | F172: =E172*1.21 -> 18150 | G172: Gestion, custodia y traslado documentacion archivo -naves mungia- | H172: 12 Meses | I172: 2019-12-31
A173: ADO1 | B173: 01/01 a 30/03 | C173: AREAK S.L. | D173: B48579965 | E173: 128 | F173: 154.88 | G173: SUMINISTRO FUENTE DE ALIMENTACION EVOLIS.-FRA. 190375 PROPUESTA PAGOS 7/19
A174: ADO1 | B174: 01/01 a 30/03 | C174: AREAK S.L. | D174: B48579965 | E174: 134.32 | F174: 162.53 | G174: SUMINISTRO DE KIT LIMPIEZA, CINTA MONOCROMO...FRA. 190374 PP Nº 8/19
A175: ADO3 | B175: 01/07 a 30-09 | C175: AREAK S.L. | D175: B48579965 | E175: =F175/1.21 -> 145.6033058 | F175: 176.18 | G175: IMPORTE REPARACION PLEGADORA 1ª PLATA AYTO.-FRA. 191043 PROP PAGOS 36/19
A176: 959 | B176: 2019-07-26 | C176: Argimiro Urones Martín (Gambrinus) | D176: 11716192S | E176: -70.91 | F176: -78 | G176: Minorar Fact. Catering grupos finalistas y cena jurados activ juveniles fiestas San Juan
A177: 466 | B177: 2019-04-17 | C177: Argimiro Urones Martín (Gambrinus) | D177: 11716192S | E177: 16.9 | F177: 18.59 | G177: Ampliar factura Gambrinus Concurso Pop Rock 2019
A178: 236 | B178: 2019-02-15 | C178: Argimiro Urones Martín (Gambrinus) | D178: 11716192S | E178: 35 | F178: 38.5 | G178: Catering – Jurados
A179: 630 | B179: 2019-06-03 | C179: Argimiro Urones Martín (Gambrinus) | D179: 11716192S | E179: 289.1 | F179: =E179*1.21 -> 349.811 | G179: Catering grupos finalistas y cena jurados
A180: 664 | B180: 2019-06-06 | C180: Argimiro Urones Martín (Gambrinus) | D180: 11716192S | E180: 343.8016 | F180: =E180*1.21 -> 415.999936 | G180: Ampliar Fact. Arigimiro (Bar Gambrinus) Umore Azoka 2019
A181: 516 | B181: 2019-05-09 | C181: Argimiro Urones Martín (Gambrinus) | D181: 11716192S | E181: 2360 | F181: 2596 | G181: Comidas y cenas Umore Azoka
A182: ADO2 | B182: 01/03 a 30/06 | C182: ARIMA COOL TOUR S.L. | D182: B95573408 | E182: 454.55 | F182: 550 | G182: IMPORTE DISKO FESTA EL DIA DE LA KORRIKA.-FRA. F-2019/48 PP Nº 22/19
A183: 635 | B183: 2019-06-03 | C183: Aritz García López | D183: 16059911T | E183: 250 | F183: =E183*1.21 -> 302.5 | G183: Presentación de las finales | H183: PUNTUAL
A184: 963 | B184: 2019-08-07 | C184: Aritz García López | D184: 16059911T | E184: 600 | F184: 600 | G184: Taller de teatro
A185: 196 | B185: 2019-02-15 | C185: ARITZ RESINES RUIZ | D185: 20222487J | E185: 120 | F185: 120 | G185: Taller afectivo sexual para familñias
A186: 480 | B186: 2019-04-30 | C186: ARITZ RESINES RUIZ | D186: 20222487J | E186: 3120 | F186: 3120 | G186: Taller afectivo sexual alumnado
A187: 328 | B187: 2019-03-14 | C187: Aritz Resines Ruiz (Xelebreak) | D187: 20222487J | E187: 120 | F187: 120 | G187: Taller afectivo sexual para familñias
A188: ADO3 | B188: 01/07 a 30-09 | C188: ARNAEZ GIL JUAN IGNACIO | D188: 14252347Y | E188: =F188/1.21 -> 3.26446281 | F188: 3.95 | G188: IMPORTE PINZAS EISE F.310 PP Nº 26/19
A189: 757 | B189: 2019-06-18 | C189: Arran Zerbitzu Kulturalak | D189: 20175136L | E189: 450 | F189: 495 | G189: Puzgarriak San Juan Auzunea Jaiak | H189: PUNTUAL
A190: 499 | B190: 2019-05-09 | C190: Artekale | D190: G95449070 | E190: 1000 | F190: 1000 | G190: Producción espacio Artekale Umore Azoka
A191: 272 | B191: 2019-02-28 | C191: Artepolitan | D191: B95619904 | E191: 14381.64 | F191: =E191*1.21 -> 17401.7844 | G191: Reparación suelo Euskal Etxeen Plaza
A192: 467 | B192: 2019-04-23 | C192: ARTEZ | D192: F95015897 | E192: 662.76 | F192: =E192*1.21 -> 801.9396 | G192: Traducción IV Plan de Igualdad | H192: PUNTUAL
A193: ADO1 | B193: 01/01 a 30/03 | C193: ARTEZ EUSKARA ZERBITZUA,KOOP. | D193: F95015897 | E193: 25 | F193: 30.25 | G193: IMPORTE SERV DE TRADUCCIONES PARA HACIENDA Y PATRIMONIO Y VEHÍCULOS. FRA- 19000027 PP Nº 5/19
A194: ADO2 | B194: 01/03 a 30/06 | C194: ARTEZ EUSKARA ZERBITZUA,KOOP. | D194: F95015897 | E194: 25 | F194: 30.25 | G194: IMPORTE SERV DE TRADUCCIONES PARA HACIENDA Y PATRIMONIO Y VEHÍCULOS. FRA- 19000027 PP Nº 5/19
A195: ADO2 | B195: 01/03 a 30/06 | C195: ARTEZ EUSKARA ZERBITZUA,KOOP. | D195: F95015897 | E195: 141.33 | F195: 171.01 | G195: IMPORTE SERV DE TRADUCCIONES PARA SECRETARIA.-FRA. 19000111 PP Nº 13/19
A196: ADO3 | B196: 01/07 a 30-09 | C196: ARTEZ EUSKARA ZERBITZUA,KOOP. | D196: F95015897 | E196: =F196/1.21 -> 50 | F196: 60.5 | G196: IMPORTE TRADUCCIONES COMPRAS INFORMATICA AGOSTO F.19000327 PP Nº 34/19
A197: 131 | B197: 2019-01-18 | C197: Artezblai S.L. | D197: B95380168 | E197: 1100 | F197: =E197*1.21 -> 1331 | G197: 6 envios anuales de las Revistas a Amigos/as Kultur Leioa
A198: 489 | B198: 2019-05-09 | C198: Artezblai S.L. | D198: B95380168 | E198: 1200 | F198: =E198*1.21 -> 1452 | G198: Inserción de Publicidad en ARTEZ de mayo a junio | J198: Procede: CM-21/2019 Dec. 24
A199: 138 | B199: 2019-01-18 | C199: ARTXILAN S.L. | D199: B48922967 | E199: 15000 | F199: =E199*1.21 -> 18150 | G199: Gestion archivo municipal y consultas y traslados de expedientes | H199: 12 Meses | I199: 2019-12-31
A200: ADO1 | B200: 01/01 a 30/03 | C200: ARTXILAN,S.L. | D200: B48922967 | E200: 250.32 | F200: 302.89 | G200: IMPORTE PRESTAMO DE EXPEDIENTES EN CUSTODIA EN EL ARCHIVO. ENERO.-FRA. 2/2019 PP Nº 4/19
... 1779 more rows

Sheet Aux (hidden)
A1: OBRA | B1: 12 MESES | C1: 14563525H
A2: PRIVADO | B2: 11 MESES | C2: A28122125
A3: SERVICIO | B3: 10 MESES | C3: A48092985
A4: SUMINISTRO | B4: 9 MESES | C4: A48093926
B5: 8 MESES | C5: A48115000
B6: 7 MESES | C6: A48189526
B7: 6 MESES | C7: A48210553
B8: 5 MESES | C8: B01305093
B9: 4 MESES | C9: B01477322
B10: 3 MESES | C10: B48182174
B11: 2 MESES | C11: B48252472
B12: 1 MES | C12: B48253801
B13: PUNTUAL | C13: B48303671
C14: B48484166
C15: B48506612
C16: B48785810
C17: B48919708
C18: B48943013
C19: B71034557
C20: B84198134
C21: B95018628
C22: B95063517
C23: B95144119
C24: B95167060
C25: B95200812
C26: B95276515
C27: B95445508
C28: B95583340
C29: B95698619
C30: B95730255
